[Event "FIDE WCCC Girls-10 2024"]
[Site "Montesilvano"]
[Date "2024.11.18"]
[Round "2.1"]
[White "Bayramova, Aya"]
[Black "Berikkyzy Alanna"]
[Result "0-1"]
[ECO "D38"]
[WhiteElo "1634"]
[BlackElo "2043"]
[PlyCount "102"]
[EventDate "2024.11.18"]
[EventType "swiss"]
[EventCountry "ITA"]
[TimeControl "5400+30"]

1. d4 {[%emt 0:00:02]} Nf6 {[%emt 0:00:42]} 2. c4 {[%emt 0:00:08]} e6 {[%emt 0:00:21]} 3. Nc3 {[%emt 0:00:18]} Bb4 {[%emt 0:00:18]} 4. Bg5 d5 {[%emt 0:01:25]} 5. cxd5 {[%emt 0:05:09]} exd5 {[%emt 0:00:24]} 6. Qa4+ {[%emt 0:01:40]} Nc6 {[%emt 0:00:30]} 7. e3 {[%emt 0:00:26]} h6 {[%emt 0:03:36]} 8. Bxf6 Qxf6 {[%emt 0:02:33]} 9. Nf3 {[%emt 0:06:48]} O-O {[%emt 0:02:42]} 10. Bb5 {[%emt 0:02:57]} a5 {[%emt 0:06:04]} 11. O-O {[%emt 0:03:18]} Ne7 12. a3 {[%emt 0:03:48]} Bd6 {[%emt 0:05:04]} 13. e4 {[%emt 1:12:26]} dxe4 {[%emt 0:03:04]} 14. Nxe4 {[%emt 0:00:00]} Qg6 {[%emt 1:10:47]} 15. Bd3 Bf5 16. Nxd6 Bxd3 17. Ne5 Qxd6 18. Nxd3 Nc6 19. Rad1 Qxd4 20. Qb5 Qb6 21. Qxb6 cxb6 22. Nf4 Rad8 23. Nd5 b5 24. f3 Rfe8 25. Kf2 Re5 26. Nc3 Rxd1 27. Rxd1 b4 28. axb4 Nxb4 29. Rd8+ Kh7 30. Rd7 b5 31. f4 Rf5 32. Kf3 g5 {[%emt 0:00:00]} 33. g3 {[%emt 0:00:00]} gxf4 {[%emt 0:00:00]} 34. gxf4 {[%emt 0:10:30]} Kg6 35. Rb7 Nd5 36. Ne2 b4 37. Rb5 a4 38. Ra5 Nb6 39. Ra6 Rf6 40. Ng3 Rc6 41. Ne4 f6 42. Nf2 Kf7 43. Nd3 b3 44. Ke4 Ke6 45. h4 Kd6 46. Kf5 Kc7 47. Ra7+ Kb8 48. Rh7 Nc4 49. Rd7 Nxb2 50. Nxb2 a3 51. Na4 b2 {[%emt 0:00:00]} 0-1

[Event "FIDE WCCC Girls-10 2024"]
[Site "Montesilvano"]
[Date "2024.11.18"]
[Round "2.2"]
[White "Yunker, Alisa Genrietta"]
[Black "Afandi, Sadagul"]
[Result "1-0"]
[ECO "D13"]
[WhiteElo "1872"]
[BlackElo "1625"]
[PlyCount "161"]
[EventDate "2024.11.18"]
[EventType "swiss"]
[EventCountry "ITA"]
[TimeControl "5400+30"]

1. d4 {[%emt 0:00:01]} d5 {[%emt 0:00:09]} 2. c4 c6 {[%emt 0:00:07]} 3. cxd5 {[%emt 0:00:09]} cxd5 {[%emt 0:00:08]} 4. Nc3 {[%emt 0:00:02]} Nf6 {[%emt 0:00:15]} 5. Nf3 {[%emt 0:00:03]} Bf5 {[%emt 0:00:18]} 6. Qb3 {[%emt 0:00:11]} b6 {[%emt 0:00:59]} 7. Bg5 {[%emt 0:02:16]} e6 {[%emt 0:01:21]} 8. e3 {[%emt 0:04:37]} Be7 {[%emt 0:05:08]} 9. Bb5+ {[%emt 0:01:10]} Nbd7 {[%emt 0:01:29]} 10. Ne5 {[%emt 0:04:42]} O-O {[%emt 0:06:09]} 11. Bxd7 {[%emt 0:04:06]} a6 {[%emt 0:07:19]} 12. Bc6 {[%emt 0:01:09]} Ra7 {[%emt 0:03:43]} 13. O-O {[%emt 0:00:58]} b5 {[%emt 0:08:58]} 14. Rac1 {[%emt 0:03:16]} Rc7 {[%emt 0:03:13]} 15. a4 {[%emt 0:08:46]} b4 {[%emt 0:02:24]} 16. Na2 {[%emt 0:00:08]} a5 {[%emt 0:01:36]} 17. Bb5 {[%emt 0:00:11]} h6 {[%emt 0:15:27]} 18. Bf4 {[%emt 0:04:56]} Rxc1 {[%emt 0:02:41]} 19. Rxc1 {[%emt 1:03:19]} Qa8 20. Nc6 Re8 21. Bc7 Bf8 22. Bxa5 Rc8 23. Bxb4 Ne4 {[%emt 0:06:55]} 24. Ba5 {[%emt 0:00:00]} Nf6 {[%emt 0:34:11]} 25. Bb4 {[%emt 0:00:00]} Ne4 {[%emt 0:00:00]} 26. Qa3 {[%emt 0:00:00]} Bxb4 {[%emt 0:00:00]} 27. Qxb4 {[%emt 0:00:00]} Kh7 {[%emt 0:00:00]} 28. f3 {[%emt 0:00:00]} Nf6 {[%emt 0:00:00]} 29. Qe7 {[%emt 0:00:00]} Bg6 {[%emt 0:00:00]} 30. Nab4 {[%emt 0:00:00]} Bf5 {[%emt 0:00:00]} 31. Na2 {[%emt 0:00:00]} Bg6 {[%emt 0:00:00]} 32. Nab4 {[%emt 0:00:00]} Ne8 {[%emt 0:00:00]} 33. Na6 {[%emt 0:00:00]} Nf6 {[%emt 0:00:00]} 34. Nab4 {[%emt 0:00:00]} Ne8 {[%emt 0:00:00]} 35. Na6 {[%emt 0:00:00]} Nf6 {[%emt 0:00:00]} 36. Nab4 {[%emt 0:00:00]} Ne8 {[%emt 0:00:00]} 37. Na6 {[%emt 0:00:00]} h5 {[%emt 0:01:05]} 38. Rc3 {[%emt 0:00:00]} Nf6 {[%emt 0:02:05]} 39. Qa3 {[%emt 0:00:00]} Nd7 {[%emt 0:01:29]} 40. b4 {[%emt 0:00:00]} Nb6 {[%emt 0:01:04]} 41. Ne5 {[%emt 0:00:00]} Nd7 {[%emt 0:00:00]} 42. Nc6 {[%emt 0:00:00]} Nb6 {[%emt 0:01:00]} 43. Ne5 {[%emt 0:00:00]} Rxc3 {[%emt 0:00:45]} 44. Qxc3 {[%emt 0:00:00]} Nxa4 {[%emt 0:00:25]} 45. Qc6 {[%emt 0:00:00]} Qxc6 {[%emt 0:00:38]} 46. Bxc6 {[%emt 0:00:00]} Nb6 {[%emt 0:00:23]} 47. Nd7 {[%emt 0:00:00]} Nc8 {[%emt 0:01:20]} 48. b5 {[%emt 0:00:00]} Bd3 {[%emt 0:00:18]} 49. Nb4 {[%emt 0:00:00]} Bc4 {[%emt 0:00:41]} 50. b6 {[%emt 0:00:00]} Nxb6 {[%emt 0:00:45]} 51. Nxb6 {[%emt 0:00:00]} Kg6 {[%emt 0:00:35]} 52. Nxc4 {[%emt 0:00:00]} dxc4 {[%emt 0:00:15]} 53. Kf2 {[%emt 0:00:00]} Kf5 {[%emt 0:00:46]} 54. Be4+ {[%emt 0:16:34] Kg6 Bc6 Kf5 Be4+} Kf6 {[%emt 0:00:18]} 55. Ke2 {[%emt 0:00:00]} Ke7 {[%emt 0:00:13]} 56. Kd2 {[%emt 0:00:00]} f5 {[%emt 0:00:15]} 57. Bb1 {[%emt 0:00:00]} g5 {[%emt 0:00:17]} 58. g3 {[%emt 0:00:00]} h4 {[%emt 0:00:19]} 59. gxh4 {[%emt 0:00:00]} gxh4 {[%emt 0:00:12]} 60. Nc6+ {[%emt 0:00:00]} Kf6 {[%emt 0:00:27]} 61. Ne5 {[%emt 0:00:00]} Ke7 {[%emt 0:00:33]} 62. Nc6+ {[%emt 0:00:00]} Kf6 {[%emt 0:00:27]} 63. Ne5 {[%emt 0:00:00]} Kg5 {[%emt 0:02:17]} 64. f4+ {[%emt 0:00:00]} Kh5 {[%emt 0:00:31]} 65. Kc3 {[%emt 0:00:00]} h3 {[%emt 0:00:29]} 66. Kxc4 {[%emt 0:00:00]} Kh6 {[%emt 0:00:30]} 67. Kc5 {[%emt 0:00:00]} Kg7 {[%emt 0:00:32]} 68. Bd3 {[%emt 0:00:00]} Kf6 {[%emt 0:00:16]} 69. Bf1 {[%emt 0:00:00]} Ke7 {[%emt 0:00:41]} 70. Bxh3 {[%emt 0:00:00]} Kf6 {[%emt 0:00:30]} 71. Kd6 {[%emt 0:00:00]} Kg7 {[%emt 0:00:18]} 72. Kxe6 {[%emt 0:00:00]} Kh6 {[%emt 0:00:46]} 73. d5 {[%emt 0:00:00]} Kg7 {[%emt 0:00:30]} 74. d6 {[%emt 0:00:00]} Kh7 {[%emt 0:00:19]} 75. Bxf5+ {[%emt 0:00:00]} Kg8 {[%emt 0:00:40]} 76. Ng4 {[%emt 0:00:00]} Kh8 {[%emt 0:00:29]} 77. d7 {[%emt 0:00:00]} Kg7 {[%emt 0:00:12]} 78. e4 {[%emt 0:00:00]} Kg8 {[%emt 0:00:46]} 79. d8=Q+ {[%emt 0:13:26]} Kg7 {[%emt 0:00:25]} 80. Qf6+ {[%emt 0:00:00] Kh7 Qd8+ Kg7 Qf6+} Kg8 {[%emt 0:00:38]} 81. Nh6# {[%emt 0:00:00] Kh7 Ng4+ Kg8 Nh6# Kh7 Ng4+ Kg8 Nh6# Kh7 Ng4+ Kg8 Nh6# Kh7 Ng4+ Kg8 Nh6# Kh7 Ng4+ Kg8 Qh4 Kh7 Qd8+ Kg7 Qf6+ Kg8 Nh6#} 1-0

[Event "FIDE WCCC Girls-10 2024"]
[Site "Montesilvano"]
[Date "2024.11.18"]
[Round "2.3"]
[White "Li, Wan Qin"]
[Black "Yang, Aimee"]
[Result "0-1"]
[ECO "D79"]
[WhiteElo "1628"]
[BlackElo "1864"]
[PlyCount "80"]
[EventDate "2024.11.18"]
[EventType "swiss"]
[EventCountry "ITA"]
[TimeControl "5400+30"]

1. Nf3 {[%emt 0:00:02]} Nf6 {[%emt 0:00:05]} 2. g3 {[%emt 0:00:09]} g6 {[%emt 0:00:06]} 3. Bg2 {[%emt 0:00:41]} Bg7 {[%emt 0:00:05]} 4. d4 {[%emt 0:00:22]} O-O {[%emt 0:00:18]} 5. O-O {[%emt 0:00:27]} d5 {[%emt 0:00:45]} 6. c4 {[%emt 0:01:53]} c6 {[%emt 0:01:11]} 7. cxd5 {[%emt 0:00:39]} cxd5 {[%emt 0:00:04]} 8. Nc3 {[%emt 0:00:34]} Bf5 9. Bf4 {[%emt 0:01:58]} Nc6 {[%emt 0:13:36]} 10. h3 {[%emt 0:04:24]} Ne4 {[%emt 0:00:43]} 11. Qb3 {[%emt 0:02:58]} Na5 {[%emt 0:08:50]} 12. Qd1 {[%emt 0:04:50]} Rc8 {[%emt 0:05:15]} 13. Rc1 {[%emt 1:18:03]} Nxc3 14. bxc3 Be4 {[%emt 0:00:00]} 15. Ne5 {[%emt 0:00:00]} Bxg2 {[%emt 1:07:02]} 16. Kxg2 {[%emt 0:00:00]} e6 {[%emt 0:00:30]} 17. Qa4 {[%emt 0:00:00]} b6 {[%emt 0:00:30]} 18. Ng4 {[%emt 0:00:00]} Qe7 {[%emt 0:00:00]} 19. Ne5 {[%emt 0:00:00]} Qd8 20. Ng4 Qe7 {[%emt 0:00:00]} 21. e3 {[%emt 0:00:00]} Rc6 {[%emt 0:00:00]} 22. Qc2 Rc4 {[%emt 0:00:00]} 23. Qa4 {[%emt 0:00:00]} Rcc8 {[%emt 0:00:00]} 24. Qc2 Rc4 {[%emt 0:00:00]} 25. Qa4 {[%emt 0:00:00]} Rcc8 {[%emt 0:00:00]} 26. Qc2 Rc4 {[%emt 0:00:00]} 27. Qa4 {[%emt 0:00:00]} Rcc8 {[%emt 0:00:00]} 28. Qc2 Rc4 {[%emt 0:00:00]} 29. Qa4 {[%emt 0:00:00]} Rcc8 {[%emt 0:00:00]} 30. Qc2 Rc4 {[%emt 0:00:00]} 31. Qa4 {[%emt 0:00:00]} Rcc8 {[%emt 0:00:00]} 32. Qc2 Rc4 {[%emt 0:00:00]} 33. Qa4 {[%emt 0:00:00]} Rcc8 {[%emt 0:00:00]} 34. Qc2 Rc4 {[%emt 0:00:00]} 35. Qa4 {[%emt 0:00:00]} Rcc8 {[%emt 0:00:00]} 36. Qc2 Rc4 {[%emt 0:00:00]} 37. Qa4 {[%emt 0:00:00]} Rcc8 {[%emt 0:00:00]} 38. Qc2 Rc4 {[%emt 0:00:00]} 39. Qa4 {[%emt 0:00:00]} Rcc8 {[%emt 0:00:00]} 40. Qc2 Rc4 {[%emt 0:00:00]} 0-1

[Event "FIDE WCCC Girls-10 2024"]
[Site "Montesilvano"]
[Date "2024.11.18"]
[Round "2.4"]
[White "Khusnitdinova, Husnorakhon"]
[Black "Nandinjiguur, Chinzorig"]
[Result "0-1"]
[ECO "C47"]
[WhiteElo "1626"]
[BlackElo "1807"]
[PlyCount "98"]
[EventDate "2024.11.18"]
[EventType "swiss"]
[EventCountry "ITA"]
[TimeControl "5400+30"]

1. e4 {[%emt 0:00:04]} e5 {[%emt 0:00:31]} 2. Nf3 {[%emt 0:00:18]} Nc6 {[%emt 0:00:08]} 3. Nc3 {[%emt 0:00:08]} Nf6 {[%emt 0:00:22]} 4. d4 {[%emt 0:00:06]} exd4 {[%emt 0:00:34]} 5. Nxd4 {[%emt 0:00:03]} Bb4 {[%emt 0:00:21]} 6. Nxc6 {[%emt 0:00:12]} bxc6 {[%emt 0:00:10]} 7. Bd3 {[%emt 0:00:05]} d5 {[%emt 0:00:39]} 8. exd5 {[%emt 0:00:18]} cxd5 {[%emt 0:00:10]} 9. O-O {[%emt 0:00:11]} O-O {[%emt 0:00:11]} 10. Bg5 {[%emt 0:00:08]} c6 {[%emt 0:00:37]} 11. Qf3 {[%emt 0:00:14]} h6 {[%emt 0:00:24]} 12. Bf4 {[%emt 0:38:51]} Bd6 {[%emt 0:02:38]} 13. Rfe1 {[%emt 0:07:00]} Bg4 14. Qe3 {[%emt 0:03:22]} Re8 {[%emt 0:06:23]} 15. Qd2 {[%emt 0:00:21]} Bxf4 {[%emt 0:06:50]} 16. Qxf4 {[%emt 0:00:05]} Qb8 17. Rxe8+ {[%emt 0:06:08]} Qxe8 {[%emt 0:05:23]} 18. f3 {[%emt 0:01:00]} Be6 {[%emt 0:00:16]} 19. Re1 {[%emt 0:05:09]} Qb8 {[%emt 0:03:02]} 20. Qc1 {[%emt 0:04:06]} c5 21. Bf1 {[%emt 0:06:17]} c4 {[%emt 0:12:02]} 22. b3 {[%emt 0:03:42]} Qb4 {[%emt 0:10:04]} 23. Ne2 {[%emt 0:01:14]} Rc8 {[%emt 0:51:15]} 24. Qd1 cxb3 {[%emt 0:00:00]} 25. cxb3 {[%emt 0:23:58]} d4 {[%emt 0:01:00]} 26. Nf4 Bf5 27. Bd3 Bxd3 28. Nxd3 Qd6 29. Qd2 Nd5 30. Rc1 Nc3 31. b4 Re8 32. Re1 {[%emt 0:00:00]} Rxe1+ {[%emt 0:00:00]} 33. Qxe1 {[%emt 0:02:48]} Qe6 {[%emt 0:00:00]} 34. Qxe6 {[%emt 0:01:11]} fxe6 {[%emt 0:00:00]} 35. a3 {[%emt 0:00:11]} Kf7 {[%emt 0:00:00]} 36. Kf2 {[%emt 0:00:42]} Ke7 {[%emt 0:00:00]} 37. Nb2 {[%emt 0:00:33]} Kd6 {[%emt 0:00:00]} 38. Ke1 {[%emt 0:00:31]} Kd5 {[%emt 0:00:00]} 39. a4 {[%emt 0:00:20]} Na2 {[%emt 0:00:00]} 40. b5 {[%emt 0:00:07]} e5 {[%emt 0:00:00]} 41. Nd3 {[%emt 0:00:10]} Nc3 {[%emt 0:00:00]} 42. Nb2 {[%emt 0:01:03]} Kc5 {[%emt 0:00:00]} 43. Nd3+ {[%emt 0:00:09]} Kd5 {[%emt 0:09:00]} 44. Nb2 {[%emt 0:00:06]} e4 {[%emt 0:00:00]} 45. fxe4+ {[%emt 0:00:22]} Kxe4 {[%emt 0:00:00]} 46. Kd2 g6 47. h3 g5 48. g4 Kd5 49. Kd3 {[%emt 0:01:37]} Kc5 {[%emt 0:00:00]} 0-1

[Event "FIDE WCCC Girls-10 2024"]
[Site "Montesilvano"]
[Date "2024.11.18"]
[Round "2.5"]
[White "Rzadkowska, Lila"]
[Black "Malcheva, Niya"]
[Result "0-1"]
[ECO "D15"]
[WhiteElo "1765"]
[BlackElo "1620"]
[PlyCount "118"]
[EventDate "2024.11.18"]
[EventType "swiss"]
[EventCountry "ITA"]
[TimeControl "5400+30"]

1. Nf3 {[%emt 0:00:04]} d5 {[%emt 0:00:09]} 2. d4 {[%emt 0:00:07]} c6 {[%emt 0:00:05]} 3. c4 {[%emt 0:00:06]} Nf6 {[%emt 0:00:08]} 4. Nc3 {[%emt 0:00:13]} a6 {[%emt 0:00:04]} 5. c5 {[%emt 0:00:11]} Bf5 {[%emt 0:00:26]} 6. Qb3 {[%emt 0:00:22]} Ra7 {[%emt 0:00:19]} 7. Bf4 {[%emt 0:00:13]} Nbd7 {[%emt 0:01:28]} 8. h3 {[%emt 0:00:39]} h6 {[%emt 0:00:13]} 9. e3 {[%emt 0:00:28]} e6 {[%emt 0:01:28]} 10. Be2 {[%emt 0:00:22]} Be7 {[%emt 0:01:07]} 11. O-O {[%emt 0:00:40]} g5 12. Be5 {[%emt 0:04:09]} g4 {[%emt 0:10:39]} 13. hxg4 {[%emt 0:00:17]} Bxg4 {[%emt 0:00:08]} 14. e4 {[%emt 0:09:12]} Nxe5 {[%emt 0:03:20]} 15. Nxe5 {[%emt 0:00:58]} Bxe2 {[%emt 0:00:11]} 16. Nxe2 {[%emt 0:00:08]} Nxe4 {[%emt 0:00:09]} 17. Qf3 {[%emt 0:02:11]} Bf6 {[%emt 0:03:15]} 18. Ng3 {[%emt 0:08:41]} Bxe5 {[%emt 0:01:16]} 19. dxe5 {[%emt 0:01:07]} Nd2 {[%emt 0:00:28]} 20. Qf4 {[%emt 0:00:19]} Nxf1 21. Nh5 {[%emt 0:07:06]} Qg5 {[%emt 0:01:45]} 22. Nf6+ {[%emt 0:00:26]} Ke7 {[%emt 0:00:06]} 23. Qb4 {[%emt 0:01:32]} Ne3 {[%emt 0:07:12]} 24. fxe3 {[%emt 0:04:40]} Qxe3+ {[%emt 0:00:12]} 25. Kh1 {[%emt 0:01:13]} Qxe5 {[%emt 0:00:36]} 26. Qb6 {[%emt 0:00:29]} Qxf6 {[%emt 0:16:02]} 27. Qxa7 {[%emt 0:00:31]} Qh4+ {[%emt 0:00:05]} 28. Kg1 {[%emt 0:00:14]} Qd4+ {[%emt 0:00:03]} 29. Kh1 {[%emt 0:00:15]} Qxb2 {[%emt 0:00:03]} 30. Rg1 {[%emt 0:01:36]} Rg8 31. g4 Qb4 {[%emt 0:02:52]} 32. Kh2 {[%emt 0:05:10]} d4 {[%emt 0:04:12]} 33. a3 {[%emt 0:00:48]} Qd2+ {[%emt 0:02:25]} 34. Rg2 {[%emt 0:00:29]} Qf4+ {[%emt 0:00:17]} 35. Kh3 {[%emt 0:01:41]} f5 {[%emt 0:04:28]} 36. Qxb7+ {[%emt 0:01:53]} Kf6 {[%emt 0:00:05]} 37. Rg3 {[%emt 0:09:53]} Qf1+ {[%emt 0:01:04]} 38. Kh2 {[%emt 0:00:22]} Qf2+ {[%emt 0:04:18]} 39. Rg2 {[%emt 0:00:38]} Qh4+ {[%emt 0:00:39]} 40. Kg1 {[%emt 0:00:10]} Rxg4 {[%emt 0:00:08]} 41. Rxg4 {[%emt 0:02:43]} Qxg4+ {[%emt 0:00:15]} 42. Kf1 {[%emt 0:01:55]} Qf3+ {[%emt 0:00:09]} 43. Kg1 {[%emt 0:00:17]} Qd1+ {[%emt 0:00:20]} 44. Kg2 {[%emt 0:00:08]} Qe2+ {[%emt 0:00:03]} 45. Kg3 {[%emt 0:00:38]} Qb5 46. Qh7 {[%emt 0:00:50]} Qd3+ {[%emt 0:02:07]} 47. Kf2 {[%emt 0:03:27]} Qe3+ {[%emt 0:00:03]} 48. Kg2 {[%emt 0:00:09]} Qe2+ 49. Kg3 {[%emt 0:00:32]} f4+ 50. Kxf4 {[%emt 0:01:01]} Qf2+ {[%emt 0:00:35]} 51. Kg4 {[%emt 0:00:22]} Qf5+ {[%emt 0:00:06]} 52. Qxf5+ {[%emt 0:00:07]} exf5+ {[%emt 0:00:04]} 53. Kf4 {[%emt 0:00:29]} h5 {[%emt 0:00:04]} 54. Kg3 {[%emt 0:00:25]} Kg5 {[%emt 0:00:06]} 55. Kf3 {[%emt 0:00:05]} h4 {[%emt 0:00:10]} 56. a4 {[%emt 0:00:06]} h3 {[%emt 0:00:15]} 57. Kg3 {[%emt 0:00:07]} d3 {[%emt 0:00:02]} 58. Kxh3 {[%emt 0:00:18]} d2 {[%emt 0:00:04]} 59. Kg3 {[%emt 0:00:06]} d1=Q {[%emt 0:00:10]} 0-1

[Event "FIDE WCCC Girls-10 2024"]
[Site "Montesilvano"]
[Date "2024.11.18"]
[Round "2.6"]
[White "Ahmadli, Mehriban"]
[Black "Samhita Pungavanam"]
[Result "1-0"]
[ECO "B80"]
[WhiteElo "1624"]
[BlackElo "1752"]
[PlyCount "165"]
[EventDate "2024.11.18"]
[EventType "swiss"]
[EventCountry "ITA"]
[TimeControl "5400+30"]

1. e4 {[%emt 0:00:09]} c5 {[%emt 0:01:28]} 2. Nf3 {[%emt 0:00:09]} Nc6 {[%emt 0:00:50]} 3. d4 {[%emt 0:00:09]} cxd4 {[%emt 0:00:22]} 4. Nxd4 {[%emt 0:00:03]} Nf6 {[%emt 0:00:13]} 5. Nc3 {[%emt 0:00:11]} d6 {[%emt 0:02:09]} 6. f3 {[%emt 0:03:48]} e6 {[%emt 0:05:36]} 7. Be3 {[%emt 0:03:52]} Be7 {[%emt 0:06:26]} 8. Qd2 {[%emt 0:01:37]} Bd7 {[%emt 0:10:45]} 9. Ndb5 {[%emt 0:02:04]} Nb4 {[%emt 0:17:39]} 10. a3 {[%emt 0:03:03]} Bxb5 {[%emt 0:06:23]} 11. Bxb5+ {[%emt 0:11:02]} Nc6 {[%emt 0:00:12]} 12. O-O {[%emt 0:00:52]} O-O {[%emt 0:04:59]} 13. Rad1 {[%emt 0:01:48]} a6 {[%emt 0:03:10]} 14. Bc4 {[%emt 0:02:50]} b5 {[%emt 0:05:25]} 15. Ba2 {[%emt 0:06:30]} Qc7 {[%emt 0:05:03]} 16. Qf2 {[%emt 0:01:43]} Ne5 {[%emt 0:02:43]} 17. Qg3 {[%emt 0:07:34]} Kh8 {[%emt 0:06:37]} 18. Rd4 {[%emt 0:07:25]} Nc4 {[%emt 0:10:02]} 19. Bxc4 {[%emt 0:03:16]} bxc4 {[%emt 0:00:07]} 20. Qf2 {[%emt 0:05:30]} Rab8 {[%emt 0:00:43]} 21. Nd1 {[%emt 0:05:58]} d5 {[%emt 0:02:56]} 22. e5 {[%emt 0:09:25]} Nd7 {[%emt 0:01:58]} 23. f4 {[%emt 0:03:04]} Bc5 {[%emt 0:00:30]} 24. Rd2 {[%emt 0:00:27]} Bxe3 {[%emt 0:00:46]} 25. Qxe3 {[%emt 0:01:35]} Qc5 {[%emt 0:00:24]} 26. Rd4 {[%emt 0:00:56]} f6 {[%emt 0:01:52]} 27. exf6 {[%emt 0:02:28]} Nxf6 {[%emt 0:00:12]} 28. c3 {[%emt 0:00:31]} Qb6 {[%emt 0:01:33]} 29. Qe5 {[%emt 0:04:47]} Ne4 {[%emt 0:01:25]} 30. f5 {[%emt 0:01:16]} Nd2 {[%emt 0:02:23]} 31. f6 {[%emt 0:02:44]} Kg8 {[%emt 0:00:32]} 32. Qg5 {[%emt 0:00:19]} Qa7 {[%emt 0:00:14]} 33. f7+ {[%emt 0:06:37]} Kh8 {[%emt 0:00:44]} 34. Rff4 {[%emt 0:02:39]} Ne4 {[%emt 0:00:19]} 35. Qe5 {[%emt 0:00:46]} Qe7 {[%emt 0:00:44]} 36. Rxd5 {[%emt 0:00:39]} Nf6 {[%emt 0:00:17]} 37. Rc5 {[%emt 0:00:40]} Qxf7 38. Rc7 {[%emt 0:00:10]} Qg6 {[%emt 0:00:52]} 39. Rf3 {[%emt 0:00:51]} Ng4 {[%emt 0:00:36]} 40. Rxf8+ {[%emt 0:00:27]} Rxf8 {[%emt 0:00:01]} 41. Qe2 {[%emt 0:00:26]} Qd3 {[%emt 0:01:16]} 42. Qxd3 {[%emt 0:00:36]} cxd3 {[%emt 0:00:01]} 43. Rd7 {[%emt 0:00:13]} Ne5 {[%emt 0:00:25]} 44. Rd4 {[%emt 0:00:11]} h6 {[%emt 0:01:04]} 45. Nf2 {[%emt 0:00:23]} Rb8 {[%emt 0:00:19]} 46. b4 {[%emt 0:00:33]} Rc8 {[%emt 0:00:36]} 47. Nxd3 {[%emt 0:00:14]} Nxd3 {[%emt 0:00:15]} 48. Rxd3 {[%emt 0:00:01]} Rc6 {[%emt 0:00:09]} 49. Kf2 {[%emt 0:00:12]} Kh7 {[%emt 0:00:28]} 50. Ke3 {[%emt 0:00:14]} Kg6 {[%emt 0:00:06]} 51. a4 {[%emt 0:00:18]} Kf5 {[%emt 0:00:28]} 52. Kd4 {[%emt 0:01:37]} e5+ {[%emt 0:00:53]} 53. Kd5 {[%emt 0:00:16]} e4 {[%emt 0:00:22]} 54. Re3 {[%emt 0:00:13]} Rc8 {[%emt 0:00:50]} 55. g4+ {[%emt 0:00:44]} Kxg4 {[%emt 0:00:54]} 56. Kxe4 {[%emt 0:00:49]} g5 {[%emt 0:00:32]} 57. Rg3+ {[%emt 0:00:14]} Kh4 {[%emt 0:00:22]} 58. Kd4 {[%emt 0:00:33]} Rd8+ {[%emt 0:00:15]} 59. Ke3 {[%emt 0:01:01]} Rb8 {[%emt 0:00:36]} 60. Kf3 {[%emt 0:00:58]} Rf8+ {[%emt 0:00:27]} 61. Kg2 {[%emt 0:00:38]} g4 {[%emt 0:00:40]} 62. h3 {[%emt 0:00:35]} h5 {[%emt 0:00:19]} 63. hxg4 {[%emt 0:00:09]} hxg4 {[%emt 0:00:01]} 64. Rd3 {[%emt 0:00:13]} Rc8 {[%emt 0:01:05]} 65. Re3 {[%emt 0:00:37]} Rd8 {[%emt 0:00:26]} 66. Re2 {[%emt 0:00:45]} Rd3 {[%emt 0:00:25]} 67. Rc2 {[%emt 0:00:23]} Rg3+ {[%emt 0:00:06]} 68. Kh1 {[%emt 0:00:16]} Rd3 {[%emt 0:00:55]} 69. Kh2 {[%emt 0:01:06]} Rh3+ {[%emt 0:00:32]} 70. Kg1 {[%emt 0:00:32]} Kg3 {[%emt 0:00:55]} 71. c4 {[%emt 0:00:27]} Rh8 {[%emt 0:00:15]} 72. c5 {[%emt 0:00:18]} Rd8 {[%emt 0:00:21]} 73. Rc1 {[%emt 0:00:40]} Rd2 {[%emt 0:00:56]} 74. Rc3+ {[%emt 0:00:32]} Kh4 {[%emt 0:00:11]} 75. c6 {[%emt 0:00:24]} Rd1+ {[%emt 0:00:14]} 76. Kf2 {[%emt 0:00:13]} Rd2+ {[%emt 0:00:36]} 77. Ke1 {[%emt 0:00:26]} Rd8 {[%emt 0:00:17]} 78. c7 {[%emt 0:00:18]} Rc8 {[%emt 0:00:50]} 79. b5 {[%emt 0:00:13]} axb5 {[%emt 0:00:48]} 80. axb5 {[%emt 0:00:06]} g3 {[%emt 0:00:11]} 81. b6 {[%emt 0:00:25]} g2 {[%emt 0:00:55]} 82. Kf2 {[%emt 0:00:24]} Rg8 {[%emt 0:00:28]} 83. Kg1 {[%emt 0:00:16]} 1-0

[Event "FIDE WCCC Girls-10 2024"]
[Site "Montesilvano"]
[Date "2024.11.18"]
[Round "2.7"]
[White "Pooja Shree R"]
[Black "Nguyen, Lam Vy Le"]
[Result "1-0"]
[ECO "C50"]
[WhiteElo "1615"]
[BlackElo "1728"]
[PlyCount "127"]
[EventDate "2024.11.18"]
[EventType "swiss"]
[EventCountry "ITA"]
[TimeControl "5400+30"]

1. e4 {[%emt 0:00:20]} e5 {[%emt 0:00:08]} 2. Nf3 {[%emt 0:00:17]} Nc6 {[%emt 0:00:17]} 3. Bc4 {[%emt 0:00:10]} Bc5 {[%emt 0:00:13]} 4. d3 {[%emt 0:00:07]} Nf6 {[%emt 0:00:11]} 5. O-O {[%emt 0:00:29]} d6 {[%emt 0:00:32]} 6. a4 {[%emt 0:04:21]} Be6 {[%emt 0:02:00]} 7. Bxe6 {[%emt 0:03:47]} fxe6 {[%emt 0:00:15]} 8. c3 {[%emt 0:00:29]} Bb6 {[%emt 0:05:03]} 9. Ng5 {[%emt 0:25:45]} Qd7 {[%emt 0:15:50]} 10. b4 {[%emt 0:05:24]} a5 {[%emt 0:05:55]} 11. b5 {[%emt 0:09:39]} Nd8 {[%emt 0:05:58]} 12. Nd2 {[%emt 0:15:29]} Nf7 {[%emt 0:07:19]} 13. Nc4 {[%emt 0:04:14]} Bc5 {[%emt 0:09:53]} 14. d4 {[%emt 0:10:35]} exd4 {[%emt 0:00:37]} 15. cxd4 {[%emt 0:00:34]} Bb4 {[%emt 0:06:35]} 16. Qc2 {[%emt 0:10:05]} Nxg5 {[%emt 0:07:17]} 17. Bxg5 {[%emt 0:00:10]} O-O {[%emt 0:00:20]} 18. Rad1 {[%emt 0:01:33]} Qf7 {[%emt 0:05:42]} 19. Bxf6 {[%emt 0:04:11]} Qxf6 {[%emt 0:03:45]} 20. f4 {[%emt 0:00:36]} Qh6 {[%emt 0:02:40]} 21. Qf2 {[%emt 0:01:53]} Rae8 {[%emt 0:02:14]} 22. Qg3 {[%emt 0:00:37]} Rf7 {[%emt 0:01:32]} 23. Rd3 {[%emt 0:00:31]} Ref8 {[%emt 0:00:53]} 24. Rdf3 {[%emt 0:00:14]} Qf6 {[%emt 0:02:08]} 25. Qf2 {[%emt 0:00:43]} c6 {[%emt 0:03:15]} 26. bxc6 {[%emt 0:00:24]} bxc6 {[%emt 0:00:05]} 27. Kh1 {[%emt 0:00:49]} Qe7 {[%emt 0:01:11]} 28. Qc2 {[%emt 0:00:26]} c5 {[%emt 0:01:03]} 29. dxc5 {[%emt 0:00:12]} Bxc5 {[%emt 0:00:17]} 30. Nxa5 {[%emt 0:00:24]} Qa7 {[%emt 0:00:16]} 31. Nc4 {[%emt 0:00:28]} Ra8 {[%emt 0:00:29]} 32. a5 {[%emt 0:00:28]} Qc7 {[%emt 0:00:51]} 33. Qb3 {[%emt 0:00:43]} Rb8 {[%emt 0:00:31]} 34. Qa2 {[%emt 0:00:43]} Qc6 {[%emt 0:00:17]} 35. Nd2 {[%emt 0:00:35]} Qd7 {[%emt 0:02:41]} 36. f5 {[%emt 0:00:22]} e5 {[%emt 0:00:18]} 37. Nb3 {[%emt 0:00:40]} Bb4 {[%emt 0:00:37]} 38. h3 {[%emt 0:00:30]} Qb7 {[%emt 0:00:16]} 39. Qe2 {[%emt 0:00:23]} Ra8 {[%emt 0:00:34]} 40. Qc4 {[%emt 0:00:39]} Bxa5 {[%emt 0:01:11]} 41. Ra1 {[%emt 0:00:21]} Bd8 {[%emt 0:00:24]} 42. Rxa8 {[%emt 0:00:25]} Qxa8 {[%emt 0:00:07]} 43. Qe6 {[%emt 0:00:33]} Qc6 {[%emt 0:01:32]} 44. Rf1 {[%emt 0:00:39]} Qd7 {[%emt 0:00:16]} 45. Qd5 {[%emt 0:00:19]} Kh8 {[%emt 0:01:26]} 46. Rd1 {[%emt 0:00:12]} Rf6 {[%emt 0:00:50]} 47. Nc5 {[%emt 0:00:36]} Qa7 {[%emt 0:00:52]} 48. Ne6 {[%emt 0:00:20]} Be7 {[%emt 0:07:54]} 49. Rb1 {[%emt 0:00:57]} Bf8 {[%emt 0:00:30]} 50. Rb7 {[%emt 0:00:37]} Qa1+ {[%emt 0:00:00]} 51. Kh2 {[%emt 0:00:01]} h6 {[%emt 0:00:00]} 52. Rb8 {[%emt 0:00:25]} Qf1 {[%emt 0:00:00]} 53. Rxf8+ {[%emt 0:00:47]} Rxf8 {[%emt 0:00:03]} 54. Nxf8 {[%emt 0:00:06]} Qf4+ {[%emt 0:00:05]} 55. Kg1 {[%emt 0:00:04]} Qe3+ {[%emt 0:00:13]} 56. Kf1 {[%emt 0:00:06]} Qc1+ {[%emt 0:00:11]} 57. Ke2 {[%emt 0:00:57]} Qc2+ {[%emt 0:00:17]} 58. Kf3 {[%emt 0:00:42]} Qc3+ {[%emt 0:00:08]} 59. Kf2 {[%emt 0:00:10]} Qc2+ {[%emt 0:00:06]} 60. Kg3 {[%emt 0:00:28]} Qc1 {[%emt 0:00:13]} 61. Ng6+ {[%emt 0:00:19]} Kh7 {[%emt 0:00:06]} 62. Kh2 {[%emt 0:00:08]} h5 {[%emt 0:00:21]} 63. Qf7 {[%emt 0:00:39]} Qg5 {[%emt 0:00:32]} 64. Qe8 {[%emt 0:00:30]} 1-0